fUST/lending_fUST_20250225
["ID","MTS","AMOUNT","RATE_DAILY","PERIOD"]
[354365788,1740449442545,-300.0,0.02911563,120]
[354365789,1740449442554,-10000.0,0.0299,120]
[354365790,1740449442564,-50000.0,0.0299,120]
[354365791,1740449442573,-180.61719872,0.02999999,120]
[354365792,1740449442583,-10000.0,0.03,120]
[354365793,1740449442593,-288.7,0.03,60]
[354365794,1740449442602,-2000.0,0.03,120]
[354365795,1740449442612,-1998.94403749,0.03,120]
[354365796,1740449442625,-500.0,0.03,120]
[354365797,1740449442635,-510.083787,0.03,120]
[354365798,1740449442644,-143596.475,0.03,120]
[354365799,1740449442654,-1200.39165855,0.0304,120]
[354365800,1740449442664,-900.0,0.0304,120]
[354365801,1740449442674,-2000.0,0.03045,120]
[354365802,1740449442683,-1539.03970355,0.0305999,120]
[354365803,1740449442693,-266.95216119,0.0305999,120]
[354365804,1740449442703,-29155.76450731,0.0306,120]
[354365805,1740449442712,-980.0,0.034,120]
[354365806,1740449442722,-50000.0,0.0349,120]
[354365807,1740449442731,-562.0,0.035,120]
[354365808,1740449442741,-500.0,0.035,120]
[354365809,1740449442751,-500.0,0.035,120]
[354365810,1740449442760,-6000.0,0.035,120]
[354365811,1740449442770,-980.0,0.036,120]
[354365812,1740449442780,-500.0,0.038,120]
[354365813,1740449442790,-980.0,0.038,120]
[354365814,1740449442799,-2000.0,0.0388,120]
[354365815,1740449442809,-5000.0,0.0398,120]
[354365816,1740449442819,-10000.0,0.0399,120]
[354365817,1740449442828,-50000.0,0.0399,120]
[354365818,1740449442839,-10000.0,0.04,120]
[354365820,1740449442848,-155.0,0.04,120]
[354365822,1740449442858,-980.0,0.04,120]
[354365823,1740449442868,-500.0,0.04,120]
[354365825,1740449442878,-500.0,0.04,120]
[354365827,1740449442888,-6000.0,0.04,120]
[354365829,1740449442898,-980.0,0.042,120]
[354365831,1740449442908,-3000.0,0.042,120]
[354365832,1740449442918,-4312.6222407,0.0444,120]
[354365833,1740449442928,-155.0,0.04444,120]
[354365834,1740449442937,-288.7,0.0445,60]
[354365835,1740449442947,-50000.0,0.0449,120]
[354365836,1740449442956,-500.0,0.045,120]
[354365837,1740449442965,-500.0,0.045,120]
[354365838,1740449442975,-500.0,0.045,120]
[354365839,1740449442984,-500.0,0.045,120]
[354365840,1740449442993,-500.0,0.045,120]
[354365841,1740449443003,-6000.0,0.045,120]
[354365842,1740449443012,-1734.87620809,0.048,120]
[354365843,1740449443022,-160.0,0.04869863,3]
[354365844,1740449443032,-172.19293633,0.04869863,5]
[354365845,1740449443042,-1539.03970355,0.0489999,120]
[354365846,1740449443051,-266.95216119,0.0489999,120]
[354365847,1740449443061,-1338.22835264,0.049,120]
[354365848,1740449443071,-10000.0,0.0498,120]
[354365849,1740449443079,-15000.0,0.0499,120]
[354365850,1740449443089,-100000.0,0.0499,120]
[354365851,1740449443098,-1527.60597734,0.049999,30]
[354365852,1740449443107,-1539.03970355,0.0499999,120]
[354365853,1740449443116,-266.95216119,0.0499999,120]
[354365854,1740449443126,-10000.0,0.05,120]
[354365855,1740449443135,-155.0,0.05,120]
[354365856,1740449443145,-500.0,0.05,120]
[354365858,1740449443155,-500.0,0.05,120]
[354365860,1740449443164,-500.0,0.05,120]
[354365862,1740449443174,-191.99,0.05,120]
[354365863,1740449443183,-6000.0,0.05,120]
[354365864,1740449443193,-300.0,0.051,120]
[354365865,1740449443209,-10000.0,0.0548,120]
[354365867,1740449443219,-50000.0,0.0549,120]
[354365868,1740449443228,-500.0,0.055,120]
[354365869,1740449443239,-760.92234,0.055,120]
[354365870,1740449443248,-500.0,0.055,120]
[354365871,1740449443257,-500.0,0.055,120]
[354365872,1740449443267,-6000.0,0.055,120]
[354365874,1740449443277,-155.0,0.05555,120]
[354365876,1740449443289,-155.0,0.05777,120]
[354365877,1740449443299,-9999.999999,0.05788,120]
[354365878,1740449443308,-200000.0,0.05789,120]
[354365879,1740449443317,-10000.0,0.0588,120]
[354365880,1740449443327,-10000.0,0.0589,120]
[354365881,1740449443337,-5236.6100198,0.059,120]
[354365882,1740449443347,-10000.0,0.0598,120]
[354365883,1740449443356,-10000.0,0.0599,120]
[354365884,1740449443366,-15000.0,0.0599,120]
[354365885,1740449443376,-100000.0,0.0599,120]
[354365887,1740449443385,-1000.0,0.05999731,120]
[354365888,1740449443395,-1000.0,0.05999743,120]
[354365889,1740449443404,-1000.0,0.05999858,120]
[354365890,1740449443413,-1527.60597734,0.059999,30]
[354365891,1740449443423,-10000.0,0.06,120]
[354365892,1740449443432,-500.0,0.06,120]
[354365893,1740449443441,-155.0,0.06,120]
[354365894,1740449443450,-500.0,0.06,120]
[354365895,1740449443459,-500.0,0.06,120]
[354365896,1740449443469,-288.7,0.06,60]
[354365897,1740449443479,-500.0,0.06,120]
[354365898,1740449443488,-500.0,0.06,120]
[354365899,1740449443497,-500.0,0.06,120]
[354365900,1740449443507,-500.0,0.06,120]
[354365901,1740449443516,-500.0,0.06,120]
[354365902,1740449443525,-500.0,0.06,120]
[354365903,1740449443536,-500.0,0.06,120]
[354365904,1740449443545,-20000.000001,0.06299,120]
[354365905,1740449443554,-155.0,0.06333,120]
[354365906,1740449443564,-32000.0,0.06388,120]
[354365907,1740449443574,-10000.0,0.06399,120]
[354365908,1740449443583,-10000.0,0.064778,120]
[354365909,1740449443593,-10000.0,0.064788,120]
[354365910,1740449443602,-10000.0,0.064788,120]
[354365911,1740449443611,-10000.0,0.064878,120]
[354365912,1740449443624,-10000.0,0.06488,120]
[354365913,1740449443634,-31507.55080617,0.06488,120]
[354365914,1740449443643,-35000.0,0.06488,120]
[354365915,1740449443653,-11326.997871,0.064888,120]
[354365916,1740449443663,-9219.15991,0.0649,120]
[354365918,1740449443672,-50000.0,0.0649,120]
[354365920,1740449443681,-6000.0,0.065,120]
[354365922,1740449443691,-3317.2442972,0.066,120]
[354365923,1740449443701,-403.8959639,0.0664,120]
[354365925,1740449443714,-1034945.12724866,0.066495,120]
[354365928,1740449443751,-7443.29652774,0.049999,30]
[354365929,1740449443760,-38616.97543849,0.066495,120]
[354365930,1740449443820,-7.71805373,0.066495,120]
[354365952,1740449450112,10000.0,0.00036,45]
[354365953,1740449461817,10000.0,0.00037,45]
[354365954,1740449463304,431.96077074,0.000429,2]
[354365955,1740449474469,10000.0,0.00034,40]
[354365956,1740449492727,10000.0,0.00033,35]
[354365962,1740449618255,12924.89674434,1.5e-07,2]
[354365969,1740449921247,262.645161,9.041e-05,2]
[354365980,1740450030138,499.999999,0.00042955,120]
[354365986,1740450425141,-200.0,0.00032,30]
[354365987,1740450425172,-166.0,0.00035533,120]
[354365988,1740450425203,-885.07663212,0.00035644,2]
[354365990,1740450434087,-2237.76625595,0.00035644,2]
[354365997,1740450586735,-726.7054387,0.00020515,120]
[354365998,1740450586768,-151.19783077,0.00024,30]
[354365999,1740450586796,-298.55,0.000258,2]
[354366000,1740450586826,-3100.0671958,0.00026,30]
[354366001,1740450586854,-159.28509252,0.0003,120]
[354366002,1740450586880,-1139.85075842,0.00035,120]
[354366003,1740450586906,-160.0,0.00035593,2]
[354366004,1740450586932,-4007.93795953,0.00035644,2]
[354366005,1740450586959,-370.15376504,0.00035997,2]
[354366006,1740450586987,-2000.0,0.00036247,60]
[354366007,1740450587013,-2000.0,0.00036247,60]
[354366008,1740450587040,-2000.0,0.00036247,60]
[354366009,1740450587072,-2000.0,0.00036247,60]
[354366010,1740450587100,-2000.0,0.00036247,60]
[354366011,1740450587129,-2000.0,0.00036247,60]
[354366012,1740450587157,-2000.0,0.00036247,60]
[354366013,1740450587183,-2000.0,0.00036247,60]
[354366014,1740450587211,-2000.0,0.00036247,60]
[354366015,1740450587239,-2000.0,0.00036247,60]
[354366016,1740450587267,-5000.0,0.000365,60]
[354366017,1740450587293,-10000.0,0.00037072,60]
[354366018,1740450587320,-151.02004961,0.00037073,5]
[354366019,1740450587347,-500.0,0.00037073,5]
[354366020,1740450587374,-1011.24121155,0.00037621,5]
[354366021,1740450587404,-156.55,0.00038247,2]
[354366022,1740450587431,-5124.849,0.000425,60]
[354366023,1740450587457,-10000.0,0.00042944,60]
[354366024,1740450587482,-1363.6,0.00042955,60]
[354366025,1740450587508,-1400.0,0.00057534,30]
[354366026,1740450587535,-1231.23176284,0.0005807,5]
[354366027,1740450587561,-223.75858473,0.0005807,5]
[354366028,1740450587588,-538.01,0.0005808,120]
[354366029,1740450587614,-500.0,0.0005808,120]
[354366030,1740450587640,-500.0,0.0005808,120]
[354366031,1740450587667,-500.0,0.0005808,120]
[354366032,1740450587700,-62499.95,0.0005808,7]
[354366033,1740450587727,-2252.57,0.0005808,120]
[354366034,1740450587756,-566.43499383,0.0005808,120]
[354366035,1740450587782,-500.0,0.0005808,120]
[354366036,1740450587810,-1231.23176284,0.00059705,5]
[354366037,1740450587836,-223.75858473,0.00059705,5]
[354366038,1740450587863,-180.61719872,0.00059714,120]
[354366039,1740450587890,-500.0,0.00059715,120]
[354366040,1740450587916,-513.03918689,0.00059715,120]
[354366041,1740450587943,-12924.89674434,0.00059715,7]
[354366042,1740450587971,-500.0,0.00059715,120]
[354366043,1740450588001,-511.04510059,0.00059715,120]
[354366044,1740450588029,-500.0,0.00059715,120]
[354366045,1740450588060,-500.0,0.00059715,120]
[354366046,1740450588089,-509.89923083,0.00059715,120]
[354366047,1740450588117,-500.0,0.00059715,120]
[354366048,1740450588148,-500.0,0.00059715,120]
[354366049,1740450588176,-501.28657536,0.00059715,120]
[354366050,1740450588204,-501.8333694,0.00059715,120]
[354366051,1740450588230,-511.84861032,0.00059715,120]
[354366052,1740450588256,-537.67,0.00059715,120]
[354366053,1740450588283,-800.81,0.00059715,120]
[354366054,1740450588309,-500.0,0.00059715,120]
[354366055,1740450588335,-500.0,0.00059715,120]
[354366056,1740450588362,-511.98614027,0.00059715,120]
[354366057,1740450588390,-989.53,0.00059715,120]
[354366058,1740450588418,-629.38,0.00059715,120]
[354366059,1740450588444,-1223.46,0.00059715,120]
[354366060,1740450588476,-500.0,0.00059715,120]
[354366061,1740450588502,-10000.0,0.0006,90]
[354366062,1740450588528,-1231.23176284,0.0006081,5]
[354366063,1740450588556,-223.75858473,0.0006081,5]
[354366064,1740450588586,-538.01,0.0006082,120]
[354366065,1740450588614,-62499.95,0.0006082,7]
[354366066,1740450588640,-2252.57,0.0006082,120]
[354366067,1740450588669,-500.0,0.00062455,120]
[354366068,1740450588696,-500.0,0.00062455,120]
[354366069,1740450588723,-500.0,0.00062455,120]
[354366070,1740450588750,-500.0,0.00062455,120]
[354366071,1740450588776,-500.0,0.00062455,120]
[354366072,1740450588805,-500.0,0.00062455,120]
[354366073,1740450588832,-537.67,0.00062455,120]
[354366074,1740450588860,-800.81,0.00062455,120]
[354366075,1740450588888,-500.0,0.00062455,120]
[354366076,1740450588914,-500.55530494,0.00062455,120]
[354366077,1740450588940,-989.53,0.00062455,120]
[354366078,1740450588967,-629.38,0.00062455,120]
[354366079,1740450588996,-1223.46,0.00062455,120]
[354366080,1740450589024,-500.0,0.00062455,120]
[354366081,1740450589051,-2462.46352568,0.0006355,5]
[354366082,1740450589080,-447.51716946,0.0006355,5]
[354366083,1740450589109,-538.01,0.0006356,120]
[354366084,1740450589142,-62499.95,0.0006356,7]
[354366085,1740450589172,-2252.57,0.0006356,120]
[354366086,1740450589203,-500.0,0.00065195,120]
[354366087,1740450589231,-209.99881951,0.00065195,120]
[354366088,1740450589257,-215.07000002,0.00065195,120]
[354366089,1740450589283,-565.64,0.00065195,120]
[354366090,1740450589389,-500.0,0.00065195,120]
[354366091,1740450589416,-406.49870617,0.00065195,120]
[354366092,1740450589444,-537.67,0.00065195,120]
[354366093,1740450589469,-800.81,0.00065195,120]
[354366094,1740450589499,-500.0,0.00065195,120]
[354366095,1740450589525,-989.53,0.00065195,120]
[354366096,1740450589551,-629.38,0.00065195,120]
[354366097,1740450589575,-1223.46,0.00065195,120]
[354366098,1740450589602,-500.0,0.00065195,120]
[354366099,1740450589629,-1231.23176284,0.0006629,6]
[354366100,1740450589655,-223.75858473,0.0006629,6]
[354366101,1740450589681,-538.01,0.000663,120]
[354366102,1740450589709,-62499.95,0.000663,7]
[354366103,1740450589735,-2252.57,0.000663,120]
[354366104,1740450589760,-1231.23176284,0.00067924,6]
[354366105,1740450589786,-223.75858473,0.00067924,6]
[354366106,1740450589811,-499.21469775,0.00067934,120]
[354366107,1740450589836,-500.0,0.00067934,120]
[354366108,1740450589865,-537.67,0.00067934,120]
[354366109,1740450589891,-800.81,0.00067934,120]
[354366110,1740450589917,-500.0,0.00067934,120]
[354366111,1740450589944,-989.53,0.00067934,120]
[354366112,1740450589970,-629.38,0.00067934,120]
[354366113,1740450589999,-1223.46,0.00067934,120]
[354366114,1740450590032,-500.0,0.00067934,120]
[354366115,1740450590060,-280.15,0.00068493,10]
[354366116,1740450590087,-1231.23176284,0.00069029,6]
[354366117,1740450590113,-223.75858473,0.00069029,6]
[354366118,1740450590138,-538.01,0.00069039,120]
[354366119,1740450590165,-62499.95,0.00069039,7]
[354366120,1740450590190,-2252.57,0.00069039,120]
[354366121,1740450590216,-500.0,0.00070674,120]
[354366122,1740450590242,-537.67,0.00070674,120]
[354366123,1740450590268,-800.81,0.00070674,120]
[354366124,1740450590293,-500.0,0.00070674,120]
[354366125,1740450590320,-989.53,0.00070674,120]
[354366126,1740450590344,-629.38,0.00070674,120]
[354366127,1740450590369,-1223.46,0.00070674,120]
[354366128,1740450590395,-500.0,0.00070674,120]
[354366129,1740450590421,-2462.46352568,0.00071769,6]
[354366130,1740450590446,-447.51716946,0.00071769,6]
[354366131,1740450590471,-538.01,0.00071779,120]
[354366132,1740450590498,-62499.95,0.00071779,7]
[354366133,1740450590523,-2252.57,0.00071779,120]
[354366134,1740450590548,-317.58,0.000718,30]
[354366135,1740450590574,-500.0,0.00073414,120]
[354366136,1740450590603,-537.67,0.00073414,120]
[354366137,1740450590628,-800.81,0.00073414,120]
[354366138,1740450590652,-500.0,0.00073414,120]
[354366139,1740450590676,-989.53,0.00073414,120]
[354366140,1740450590702,-629.38,0.00073414,120]
[354366141,1740450590726,-1223.46,0.00073414,120]
[354366142,1740450590751,-500.0,0.00073414,120]
[354366143,1740450590775,-2000.0,0.000745,120]
[354366144,1740450590799,-2000.0,0.000745,120]
[354366145,1740450590826,-1231.23176284,0.00074509,6]
[354366146,1740450590851,-223.75858473,0.00074509,6]
[354366147,1740450590875,-538.01,0.00074519,120]
[354366148,1740450590902,-62499.95,0.00074519,7]
[354366149,1740450590928,-2252.57,0.00074519,120]
[354366150,1740450590952,-232.69706186,0.00076153,120]
[354366151,1740450590980,-537.67,0.00076153,120]
[354366152,1740450591006,-800.81,0.00076153,120]
[354366153,1740450591032,-500.0,0.00076153,120]
[354366154,1740450591059,-989.53,0.00076153,120]
[354366155,1740450591084,-629.38,0.00076153,120]
[354366156,1740450591110,-1223.46,0.00076153,120]
[354366157,1740450591136,-500.0,0.00076153,120]
[354366158,1740450591162,-2462.46352568,0.00077248,7]
[354366159,1740450591187,-447.51716946,0.00077248,7]
[354366160,1740450591213,-538.01,0.00077258,120]
[354366161,1740450591241,-62499.95,0.00077258,7]
[354366162,1740450591266,-2252.57,0.00077258,120]
[354366163,1740450591291,-317.58,0.000773,30]
[354366164,1740450591316,-537.67,0.00078893,120]
[354366165,1740450591341,-800.81,0.00078893,120]
[354366166,1740450591368,-500.0,0.00078893,120]
[354366167,1740450591393,-989.53,0.00078893,120]
[354366168,1740450591418,-629.38,0.00078893,120]
[354366169,1740450591443,-1223.46,0.00078893,120]
[354366170,1740450591470,-500.0,0.00078893,120]
[354366171,1740450591504,-500.0,0.00079,120]
[354366172,1740450591530,-1231.23176284,0.00079988,7]
[354366173,1740450591570,-223.75858473,0.00079988,8]
[354366174,1740450591596,-538.01,0.00079998,120]
[354366175,1740450591624,-62499.95,0.00079998,7]
[354366176,1740450591649,-2252.57,0.00079998,120]
[354366177,1740450591676,-10000.0,0.0008,100]
[354366178,1740450591702,-1231.23176284,0.00081623,8]
[354366179,1740450591728,-223.75858473,0.00081623,8]
[354366180,1740450591850,-537.67,0.00081633,120]
[354366181,1740450591876,-800.81,0.00081633,120]
[354366182,1740450591902,-500.0,0.00081633,120]
[354366183,1740450591928,-989.53,0.00081633,120]
[354366184,1740450591953,-629.38,0.00081633,120]
[354366185,1740450591979,-1223.46,0.00081633,120]
[354366186,1740450592006,-482.8096362,0.00081633,120]
[354366187,1740450592032,-2000.0,0.000825,120]
[354366188,1740450592060,-2000.0,0.000825,120]
[354366189,1740450592087,-1231.23176284,0.00082728,8]
[354366190,1740450592114,-223.75858473,0.00082728,8]
[354366191,1740450592143,-538.01,0.00082738,120]
[354366192,1740450592175,-62499.95,0.00082738,7]
[354366193,1740450592202,-2252.57,0.00082738,120]
[354366194,1740450592228,-2000.0,0.000835,120]
[354366195,1740450592254,-10000.0,0.000835,120]
[354366196,1740450592280,-537.67,0.00084373,120]
[354366197,1740450592305,-800.81,0.00084373,120]
[354366198,1740450592331,-500.0,0.00084373,120]
[354366199,1740450592357,-989.53,0.00084373,120]
[354366200,1740450592383,-629.38,0.00084373,120]
[354366201,1740450592408,-1223.46,0.00084373,120]
[354366202,1740450592434,-2000.0,0.000845,120]
[354366203,1740450592459,-2000.0,0.000845,120]
[354366204,1740450592485,-2000.0,0.000845,120]
[354366205,1740450592511,-317.58,0.000845,60]
[354366206,1740450592536,-2000.0,0.000845,120]
[354366207,1740450592562,-2000.0,0.000845,120]
[354366208,1740450592587,-2000.0,0.000845,120]
[354366209,1740450592613,-1231.23176284,0.0008499,9]
[354366210,1740450592639,-223.75858473,0.0008499,9]
[354366211,1740450592664,-1000.0,0.00085,120]
[354366212,1740450592689,-1018.4039849,0.00085378,30]
[354366213,1740450592715,-3693.69528852,0.00085468,9]
[354366214,1740450592740,-671.27575419,0.00085468,9]
[354366215,1740450592766,-538.01,0.00085478,120]
[354366216,1740450592791,-5000.0,0.00085478,120]
[354366217,1740450592816,-5000.0,0.00085478,120]
[354366218,1740450592840,-5000.0,0.00085478,120]
[354366219,1740450592865,-5000.0,0.00085478,120]
[354366220,1740450592889,-5000.0,0.00085478,120]
[354366221,1740450592914,-5000.0,0.00085478,120]
[354366222,1740450592938,-5000.0,0.00085478,120]
[354366223,1740450592964,-5000.0,0.00085478,120]
[354366224,1740450592993,-5000.0,0.00085478,120]
[354366225,1740450593019,-5000.0,0.00085478,120]
[354366226,1740450593044,-5000.0,0.00085478,120]
[354366227,1740450593071,-5000.0,0.00085478,120]
[354366228,1740450593096,-5000.0,0.00085478,120]
[354366229,1740450593121,-5000.0,0.00085478,120]
[354366230,1740450593148,-5000.0,0.00085478,120]
[354366231,1740450593174,-5000.0,0.00085478,120]
[354366232,1740450593199,-5000.0,0.00085478,120]
[354366233,1740450593224,-5000.0,0.00085478,120]
[354366234,1740450593249,-5000.0,0.00085478,120]
[354366235,1740450593275,-5000.0,0.00085478,120]
[354366236,1740450593300,-2321.28393,0.00085478,120]
[354366237,1740450593327,-62499.95,0.00085478,7]
[354366238,1740450593352,-2252.57,0.00085478,120]
[354366239,1740450593383,-537.67,0.00087112,120]
[354366240,1740450593408,-800.81,0.00087112,120]
[354366241,1740450593435,-500.0,0.00087112,120]
[354366242,1740450593460,-989.53,0.00087112,120]
[354366243,1740450593485,-629.38,0.00087112,120]
[354366244,1740450593513,-1223.46,0.00087112,120]
[354366245,1740450593537,-500.0,0.00088,120]
[354366246,1740450593565,-538.01,0.00088217,120]
[354366247,1740450593592,-62499.95,0.00088217,7]
[354366248,1740450593617,-2252.57,0.00088217,120]
[354366249,1740450593641,-2000.0,0.000895,120]
[354366250,1740450593667,-2000.0,0.000895,120]
[354366251,1740450593692,-10000.0,0.000895,120]
[354366252,1740450593717,-537.67,0.00089852,120]
[354366253,1740450593742,-800.81,0.00089852,120]
[354366254,1740450593767,-500.0,0.00089852,120]
[354366255,1740450593794,-989.53,0.00089852,120]
[354366256,1740450593822,-629.38,0.00089852,120]
[354366257,1740450593848,-1223.46,0.00089852,120]
[354366258,1740450593874,-538.01,0.00090957,120]
[354366259,1740450593903,-62499.95,0.00090957,7]
[354366260,1740450593929,-2252.57,0.00090957,120]
[354366261,1740450593954,-317.58,0.00091,60]
[354366262,1740450593986,-537.67,0.00092592,120]
[354366263,1740450594014,-800.81,0.00092592,120]
[354366264,1740450594039,-500.0,0.00092592,120]
[354366265,1740450594065,-989.53,0.00092592,120]
[354366266,1740450594168,-629.38,0.00092592,120]
[354366267,1740450594198,-1223.46,0.00092592,120]
[354366268,1740450594224,-538.01,0.00093697,120]
[354366269,1740450594252,-62499.95,0.00093697,7]
[354366270,1740450594278,-2252.57,0.00093697,120]
[354366271,1740450594304,-2000.0,0.000945,120]
[354366272,1740450594331,-2000.0,0.000945,120]
[354366273,1740450594358,-2000.0,0.000945,120]
[354366274,1740450594384,-2000.0,0.000945,120]
[354366275,1740450594410,-2000.0,0.000945,120]
[354366276,1740450594436,-2000.0,0.000945,120]
[354366277,1740450594461,-2000.0,0.000945,120]
[354366278,1740450594488,-2000.0,0.000945,120]
[354366279,1740450594513,-10000.0,0.000945,120]
[354366280,1740450594539,-500.0,0.00095,120]
[354366281,1740450594566,-537.67,0.00095332,120]
[354366282,1740450594593,-800.81,0.00095332,120]
[354366283,1740450594619,-500.0,0.00095332,120]
[354366284,1740450594646,-989.53,0.00095332,120]
[354366285,1740450594672,-629.38,0.00095332,120]
[354366286,1740450594704,-1223.46,0.00095332,120]
[354366287,1740450594736,-538.01,0.00096436,120]
[354366288,1740450594769,-62499.95,0.00096436,7]
[354366289,1740450594796,-2252.57,0.00096436,120]
[354366290,1740450594828,-317.58,0.000965,60]
[354366291,1740450594856,-500.0,0.00097,120]
[354366292,1740450594884,-1000.0,0.00098,120]
[354366293,1740450594912,-537.67,0.00098071,120]
[354366294,1740450594940,-800.81,0.00098071,120]
[354366295,1740450594969,-500.0,0.00098071,120]
[354366296,1740450595003,-989.53,0.00098071,120]
[354366297,1740450595031,-629.38,0.00098071,120]
[354366298,1740450595058,-1223.46,0.00098071,120]
[354366299,1740450595086,-1000.0,0.00099,120]
[354366300,1740450595115,-538.01,0.00099176,120]
[354366301,1740450595144,-62499.95,0.00099176,7]
[354366302,1740450595171,-2252.57,0.00099176,120]
[354366303,1740450595199,-10000.0,0.001,120]
[354366304,1740450595227,-537.67,0.00100811,120]
[354366305,1740450595253,-800.81,0.00100811,120]
[354366306,1740450595280,-500.0,0.00100811,120]
[354366307,1740450595306,-989.53,0.00100811,120]
[354366308,1740450595331,-629.38,0.00100811,120]
[354366309,1740450595356,-1223.46,0.00100811,120]
[354366310,1740450595383,-2977.31861115,0.00101816,2]
[354366311,1740450595408,-538.01,0.00101916,120]
[354366312,1740450595440,-62499.95,0.00101916,7]
[354366313,1740450595465,-2252.57,0.00101916,120]
[354366314,1740450595491,-537.67,0.00103551,120]
[354366315,1740450595517,-800.81,0.00103551,120]
[354366316,1740450595542,-529.67767291,0.00103551,120]
[354366317,1740450595572,-989.53,0.00103551,120]
[354366318,1740450595597,-629.38,0.00103551,120]
[354366319,1740450595622,-1223.46,0.00103551,120]
[354366320,1740450595647,-2000.0,0.001045,120]
[354366321,1740450595673,-2000.0,0.001045,120]
[354366322,1740450595701,-2000.0,0.001045,120]
[354366323,1740450595727,-538.01,0.00104656,120]
[354366324,1740450595755,-62499.95,0.00104656,7]
[354366325,1740450595780,-2252.57,0.00104656,120]
[354366326,1740450595804,-317.58,0.00105,60]
[354366327,1740450595829,-537.67,0.0010629,120]
[354366328,1740450595854,-800.81,0.0010629,120]
[354366329,1740450595879,-989.53,0.0010629,120]
[354366330,1740450595903,-629.38,0.0010629,120]
[354366331,1740450595927,-1223.46,0.0010629,120]
[354366332,1740450595952,-538.01,0.00107395,120]
[354366333,1740450595982,-62499.95,0.00107395,7]
[354366334,1740450596016,-2252.57,0.00107395,120]
[354366335,1740450596042,-537.67,0.0010903,120]
[354366336,1740450596072,-800.81,0.0010903,120]
[354366337,1740450596099,-989.53,0.0010903,120]
[354366338,1740450596124,-629.38,0.0010903,120]
[354366339,1740450596152,-1223.46,0.0010903,120]
[354366340,1740450596178,-538.01,0.00110135,120]
[354366341,1740450596205,-62499.95,0.00110135,7]
[354366342,1740450596230,-2252.57,0.00110135,120]
[354366343,1740450596256,-537.67,0.0011177,120]
[354366344,1740450596284,-800.81,0.0011177,120]
[354366345,1740450596312,-989.53,0.0011177,120]
[354366346,1740450596338,-629.38,0.0011177,120]
[354366347,1740450596364,-1223.46,0.0011177,120]
[354366348,1740450596392,-538.01,0.00112875,120]
[354366349,1740450596421,-62499.95,0.00112875,7]
[354366350,1740450596538,-2252.57,0.00112875,120]
[354366351,1740450596565,-317.58,0.00113,60]
[354366352,1740450596590,-2000.0,0.001145,120]
[354366353,1740450596615,-2000.0,0.001145,120]
[354366354,1740450596641,-2000.0,0.001145,120]
[354366355,1740450596666,-2000.0,0.001145,120]
[354366356,1740450596692,-2000.0,0.001145,120]
[354366357,1740450596718,-2000.0,0.001145,120]
[354366358,1740450596744,-2000.0,0.001145,120]
[354366359,1740450596769,-537.67,0.0011451,120]
[354366360,1740450596798,-800.81,0.0011451,120]